Cogmind - Beta 15 *** ADVENTURER MODE // 2025.05.17 @ 00:43:29 Player: Jack Result: Destroyed by Executioner with Helical Railgun Performance ------------- Evolutions (7) 3500 Regions Visited (10) 2000 Robots Destroyed (17) 85 Value Destroyed (520) 520 Prototype IDs (8) 160 Alien Tech Used (0) 0 Bonus (2291) 2291 TOTAL SCORE: 8556 Bonus ------- Pacifist 491 Registered with UFD 300 Met Optimus in HQ 500 Met Optimus at Protoforge 1000 Cogmind --------- Core Integrity 0/1300 Matter 300/300 Energy 44/100 System Corruption 15% Temperature Cool (9) Movement Flying (37) Location -3/Protoforge Parts ------- > --- POWER (1) -------- (None) > --- PROPULSION (6) --- Xenon Bombardment Thruster Impulse Thruster Array Impulse Thruster Array > --- UTILITY (12) ----- Light Humpback Advanced Weight Redist. System Improved Targeting Computer > --- WEAPON (2) ------- (None) > --- INVENTORY (25) --- Micro Antimatter Reactor UFD Drillbomb Peak State ------------ > --- POWER ------------ Light Antimatter Reactor > --- PROPULSION ------- Field Propulsion Drive Field Propulsion Drive Nuclear Pulse Array Q-thruster > --- UTILITY ---------- Structural Scanner Machine Analyzer Active Sensor Suite Hacking Suite Hacking Suite Hacking Suite Advanced Hacking Suite System Shield > --- WEAPON ----------- Power Sword > --- INVENTORY -------- Light Ion Engine Micro Fission Core Light Antimatter Reactor Power Maul Chainsword [Rating: 95] Favorites ----------- Power Light Ion Engine Engine Light Ion Engine Power Core Micro Fission Core Reactor Light Antimatter Reactor Propulsion Impulse Thruster Array Flight Unit Impulse Thruster Array Utility Hacking Suite Device Active Sensor Suite Storage Light Humpback Processor Machine Analyzer Hackware Hacking Suite Protection Makeshift Medium Armor Plating Weapon Power Maul Impact Weapon Power Maul Slashing Weapon Power Sword Special Melee Weapon Improved Datajack Build | -11 -10 -10 -7 -5 -5 -5 -4 -3 -3 -3 ------- Run | Yrd Mat Sub Scr Fac Was Fac Fac Res Qua Frg Slots Evolved 14 | . . . . 10 . . 2 2 . . Power . | . . . . . . . . . . . Propulsion 4 | . . . . 2 . . . 2 . . Utility 10 | . . . . 8 . . 2 . . . Weapon . | . . . . . . . . . . . Parts Attached 51 | . 3 . . 14 . 9 1 2 . 22 Power 6 | . 1 . . 1 . 1 . 1 . 2 Engine 2 | . 1 . . 1 . . . . . . Core 1 | . . . . . . 1 . . . . Reactor 3 | . . . . . . . . 1 . 2 Propulsion 18 | . 2 . . 2 . 3 . 1 . 10 Treads . | . . . . . . . . . . . Leg . | . . . . . . . . . . . Wheel . | . . . . . . . . . . . Hover . | . . . . . . . . . . . Flight 18 | . 2 . . 2 . 3 . 1 . 10 Utility 22 | . . . . 8 . 5 1 . . 8 Device 4 | . . . . 2 . 1 . . . 1 Storage 5 | . . . . . . . . . . 5 Processor 2 | . . . . 1 . . . . . 1 Hackware 10 | . . . . 5 . 4 1 . . . Protection 1 | . . . . . . . . . . 1 Artifact . | . . . . . . . . . . . Weapon 5 | . . . . 3 . . . . . 2 Energy Gun . | . . . . . . . . . . . Energy Cannon . | . . . . . . . . . . . Ballistic Gun . | . . . . . . . . . . . Ballistic Cannon . | . . . . . . . . . . . Launcher . | . . . . . . . . . . . Special Weapon . | . . . . . . . . . . . Impact Weapon 2 | . . . . 1 . . . . . 1 Slashing Weapon 2 | . . . . 1 . . . . . 1 Piercing Weapon . | . . . . . . . . . . . Special Melee Weapon 1 | . . . . 1 . . . . . . Unidentified Prototypes 2 | . . . . . . 1 . . . 1 Corrupted Parts 3 | . . . . . . . . . . 3 System Corruption 12 | . . . . . . . . . . 12 Parts Lost 15 | . . . . . 1 1 2 . . 11 Power 3 | . . . . . . . . . . 3 Propulsion 8 | . . . . . 1 1 . . . 6 Utility 3 | . . . . . . . 1 . . 2 Weapon 1 | . . . . . . . 1 . . . Highest Loss Streak 6 | . . . . . 1 1 1 . . 6 To Critical Strikes . | . . . . . . . . . . . Average Backups 2 | 1 3 3 2 3 4 3 4 5 5 1 Power 1 | . . . . 1 1 1 2 3 3 1 Propulsion . | . . . . . . . . . . . Utility . | . . . . . 1 . . . . . Weapon . | 1 3 3 1 1 2 2 2 2 2 . Tool/Special . | . . . . . . . . . . . Unused Backups 4 | . . . 3 . . . . . . 1 Power . | . . . . . . . . . . . Propulsion 1 | . . . . . . . . . . 1 Utility . | . . . . . . . . . . . Weapon 3 | . . . 3 . . . . . . . Tool/Special . | . . . . . . . . . . . Average Slot Usage (%) 41 | . 11 42 42 66 77 73 72 63 66 27 Engine 3 | . 3 14 14 5 3 2 . . . 2 Flight 15 | . 7 28 28 16 15 10 15 16 19 14 Device 3 | . . . . 8 9 9 10 9 9 . Processor 2 | . . . . 4 5 5 5 4 4 1 Hackware 7 | . . . . 17 29 28 29 23 23 . Impact Weapon 1 | . . . . 1 . . . . . 2 Slashing Weapon 1 | . . . . 3 5 5 5 4 4 . Special Melee Weapon 1 | . . . . 4 5 5 . . . . Peak Build Rating 95 | . 3 3 6 79 79 88 89 95 95 95 Average Rating 56 | . . 3 5 61 77 75 87 90 95 57 On Entrance 48 | . . 3 3 6 79 74 88 86 95 95 Naked Turns 163 | . 158 . . . . . . . . 5 Heaviest Build 61 | . 3 3 3 19 19 14 14 20 20 61 Greatest Support 57 | 3 8 8 8 21 21 27 27 35 35 57 Greatest Overweight (x) 1 | . . . . . . . . . . 1 Average Overweight (x) . | . . . . . . . . . . . Largest Inventory Capacity 25 | 5 5 5 5 5 5 5 5 5 5 25 Average Capacity 7 | 5 5 5 5 5 5 5 5 5 5 9 Most Carried 23 | 3 3 3 5 5 5 4 5 5 5 23 Average Carried 4 | 2 3 3 4 3 4 3 4 5 5 4 Final Capacity 25 | 5 5 5 5 5 5 5 5 5 5 25 Final Carried 11 | 3 3 3 5 5 4 4 5 5 5 11 Class Distribution -------------------- 28% | Scavenger-Sprinter 23% | Scavenger-Mutant 17% | Wizard-Scout 11% | Mutant 10% | Hacker-Scout 5% | Sprinter Dominant Class ---------------- Mutant | -10/Materials Mutant | -10/Subcaves Mutant | -7/Scraptown Hacker-Scout | -5/Factory Hacker-Scout | -5/Waste Wizard-Scout | -5/Factory Wizard-Scout | -4/Factory Wizard-Scout | -3/Research Wizard-Scout | -3/Quarantine Scavenger-Sprinter | -3/Protoforge Resources | -11 -10 -10 -7 -5 -5 -5 -4 -3 -3 -3 ----------- Run | Yrd Mat Sub Scr Fac Was Fac Fac Res Qua Frg Matter Collected 1274 | 171 69 . . 140 . 34 92 . 84 684 Remotely . | . . . . . . . . . . . Salvage Created 443 | . . . . 167 . 34 147 . 10 85 Parts 27 | . . . . 9 . 6 7 . 2 3 Haulers Intercepted . | . . . . . . . . . . . Recyclers Shooed . | . . . . . . . . . . . Parts Field Recycled . | . . . . . . . . . . . Retrieved Matter . | . . . . . . . . . . . Parts Self-Destructed . | . . . . . . . . . . . Prevented . | . . . . . . . . . . . Kills | -11 -10 -10 -7 -5 -5 -5 -4 -3 -3 -3 ------- Run | Yrd Mat Sub Scr Fac Was Fac Fac Res Qua Frg Combat Hostiles Destroyed 3 | . . . . . . . 1 . . 2 Melee 2 | . . . . . . . 1 . . 1 Classes Destroyed 6 | . . . . 3 . . 2 . . 1 Worker 2 | . . . . 1 . . . . . 1 Builder 4 | . . . . 2 . 2 . . . . Operator 6 | . . . . 5 . . . . 1 . Watcher 2 | . . . . . . . 2 . . . Programmer 1 | . . . . . . . 1 . . . Decapitator 2 | . . . . . . . . . . 2 Best Kill Streak 2 | . . . . 2 . 2 2 . 1 1 Combat Bots Only 1 | . . . . . . . 1 . . 1 Max Kills in Single Turn 1 | . . . . 1 . 1 1 . 1 1 Gunslinging . | . . . . . . . . . . . Exploded . | . . . . . . . . . . . Melee 1 | . . . . . . . 1 . . 1 Uniques/NPCs Destroyed . | . . . . . . . . . . . Combat | -11 -10 -10 -7 -5 -5 -5 -4 -3 -3 -3 -------- Run | Yrd Mat Sub Scr Fac Was Fac Fac Res Qua Frg Hostile Shots Fired 206 | . 6 . . 2 1 2 15 . 3 177 Missed 93 | . 3 . . 2 . 1 9 . 2 76 Hits 113 | . 3 . . . 1 1 6 . 1 101 Melee 22 | . . . . . 1 . . . . 21 Projectile 91 | . 3 . . . . 1 6 . 1 80 AOE 1 | . . . . . . . . . . 1 Critical Strikes 22 | . . . . . 1 . . . . 21 Damage Taken 3127 | . 26 . . . 46 135 178 . 42 2700 Core 1501 | . 26 . . . . 75 88 . . 1312 Absorbed by Shields . | . . . . . . . . . . . Ignored by Resistances 820 | . 9 . . . 12 35 47 . 11 706 Regen/Repaired (Parts) 46 | . . . . . . 46 . . . . Core Remaining (%) 93 | 100 . . 89 . . 92 92 . . . Volleys Fired . | . . . . . . . . . . . Largest . | . . . . . . . . . . . Hottest . | . . . . . . . . . . . Shots Fired . | . . . . . . . . . . . Gun . | . . . . . . . . . . . Cannon . | . . . . . . . . . . . Launcher . | . . . . . . . . . . . Special . | . . . . . . . . . . . Kinetic . | . . . . . . . . . . . Thermal . | . . . . . . . . . . . Explosive . | . . . . . . . . . . . Electromagnetic . | . . . . . . . . . . . Robot Hit Streak . | . . . . . . . . . . . Robot Miss Streak . | . . . . . . . . . . . Penetration Max . | . . . . . . . . . . . Secondary Targets . | . . . . . . . . . . . Shots Hit Robots 32 | . . . . 12 . 2 4 . 2 12 Core Hits 10 | . . . . 3 . 1 3 . 1 2 Critical Kills . | . . . . . . . . . . . Critical Parts Destroyed 4 | . . . . 2 . . . . . 2 Critical Strikes 5 | . . . . 2 . . 1 . . 2 Smash 4 | . . . . 2 . . . . . 2 Sever 1 | . . . . . . . 1 . . . Melee Attacks 174 | . . . . 60 . 38 34 13 5 24 Impact 36 | . . . . 21 . . . . . 15 Slashing 137 | . . . . 38 . 38 34 13 5 9 Piercing . | . . . . . . . . . . . Sneak Attacks 8 | . . . . 5 . 2 . . . 1 Combat Hostiles . | . . . . . . . . . . . Follow-up Attacks . | . . . . . . . . . . . Damage Inflicted 1822 | . . . . 698 . 194 186 . 120 624 Guns . | . . . . . . . . . . . Cannons . | . . . . . . . . . . . Explosions . | . . . . . . . . . . . Melee 1822 | . . . . 698 . 194 186 . 120 624 Ramming . | . . . . . . . . . . . Kinetic . | . . . . . . . . . . . Thermal . | . . . . . . . . . . . Explosive . | . . . . . . . . . . . Electromagnetic . | . . . . . . . . . . . Impact 669 | . . . . 227 . . . . . 442 Slashing 1153 | . . . . 471 . 194 186 . 120 182 Piercing . | . . . . . . . . . . . Highest Corruption 15 | . . . . . 7 7 1 . . 15 Average Corruption 10 | . . . . . 7 7 1 . . 11 Corruption Purged . | . . . . . . . . . . . Corruption Blocked . | . . . . . . . . . . . Effects 162 | . . . . . 1 21 . . . 140 Message Errors 44 | . . . . . 1 5 . . . 38 Matter Fused 48 | . . . . . . 7 . . . 41 Heat Flow Errors 17 | . . . . . . 1 . . . 16 Energy Discharges 16 | . . . . . . 3 . . . 13 Parts Rejected 4 | . . . . . . 1 . . . 3 Data Loss (minor) 19 | . . . . . . 3 . . . 16 Data Loss (major) 8 | . . . . . . 1 . . . 7 Alerts 1 | . . . . . . . . . . 1 Misdirections 5 | . . . . . . . . . . 5 Overload Shots . | . . . . . . . . . . . Overflow Damage 487 | . . . . 300 . 56 . . . 131 Projectiles . | . . . . . . . . . . . Explosions . | . . . . . . . . . . . Melee 487 | . . . . 300 . 56 . . . 131 Knockbacks 4 | . . . . 2 . . . . . 2 Impact 4 | . . . . 2 . . . . . 2 Kinetic . | . . . . . . . . . . . Secondary . | . . . . . . . . . . . Self-Inflicted Damage 90 | . . . . . . . 90 . . . Shots 1 | . . . . . . . 1 . . . Rammed . | . . . . . . . . . . . Targets Rammed . | . . . . . . . . . . . Kicked . | . . . . . . . . . . . Crushed . | . . . . . . . . . . . Highest Temperature 224 | . . . . . . 224 . . . 210 Average Temperature 83 | . . . . . . 119 . . . 76 Received Heat Transfer 166 | . 18 . . . . . 9 . . 139 Siege Activations . | . . . . . . . . . . . Martial Activations . | . . . . . . . . . . . Shielding Activations . | . . . . . . . . . . . Robots Disrupted . | . . . . . . . . . . . Combat Hostiles . | . . . . . . . . . . . Robots Corrupted 3 | . . . . 2 . . . . . 1 Combat Hostiles 1 | . . . . . . . . . . 1 Parts Fried 8 | . . . . 4 . . . . . 4 Impact Corruptions 12 | . . . . 7 . . . . . 5 Robots Melted . | . . . . . . . . . . . Combat Hostiles . | . . . . . . . . . . . Parts Melted . | . . . . . . . . . . . Heat Transferred . | . . . . . . . . . . . Parts Sabotaged 1 | . . . . . . . . . . 1 Parts Stolen . | . . . . . . . . . . . Parts Stripped . | . . . . . . . . . . . Power Chain Reactions . | . . . . . . . . . . . Alert | -11 -10 -10 -7 -5 -5 -5 -4 -3 -3 -3 ------- Run | Yrd Mat Sub Scr Fac Was Fac Fac Res Qua Frg Maximum Alert Level 2 | . . . . 1 . 1 2 1 . 1 Low Security (%) 88 | 100 100 . . 93 100 99 58 . 100 90 Level 1 11 | . . . . 6 . . 35 100 . 9 Level 2 . | . . . . . . . 6 . . . Level 3 . | . . . . . . . . . . . Level 4 . | . . . . . . . . . . . Level 5 . | . . . . . . . . . . . High Security . | . . . . . . . . . . . Max Security . | . . . . . . . . . . . Peak Influence 537 | . . . . 221 67 201 537 374 181 380 Initial 239 | . . . . . 52 28 81 239 176 66 Average 69 | . . . . 66 54 49 178 293 162 57 Influence Increases 3071 | . . . . 436 15 417 636 201 11 1355 Destroy 0b10 Robot/C 60 | . . . . . . . 20 . . 40 Destroy 0b10 Robot/NC 70 | . . . . 40 . 10 10 . 5 5 Destroy Leader 14 | . . . . . . . 14 . . . Successful Hack 89 | . . . . 7 . 28 . 30 . 24 Disable Machine 18 | . . . . . . 9 9 . . . Destroy Structure 280 | . . . . 74 . 70 88 26 6 16 Partial Spotted 90 | . . . . . 15 . . 30 . 45 Lose Combat Pursuer 1350 | . . . . 15 . . 195 15 . 1125 Active Sensor Use 1100 | . . . . 300 . 300 300 100 . 100 Influence Decreases 2701 | . . . . 257 147 271 302 368 234 1122 Entered New Map 801 | . . . . . 127 19 112 288 184 71 Time Decay 1750 | . . . . 257 10 242 170 80 50 941 Lost Part 150 | . . . . . 10 10 20 . . 110 Squads Dispatched 43 | . . . . 15 . 10 9 2 . 7 Investigation 32 | . . . . 10 . 8 8 1 . 5 Extermination 4 | . . . . 1 . 1 1 1 . . Reinforcement 7 | . . . . 4 . 1 . . . 2 Assault . | . . . . . . . . . . . Garrison . | . . . . . . . . . . . Intercept . | . . . . . . . . . . . Searches Triggered . | . . . . . . . . . . . Construction Impeded 1 | . . . . 1 . . . . . . Haulers Reinforced . | . . . . . . . . . . . Active Scanning Responses 11 | . . . . 3 . 3 3 1 . 1 Cargo Convoy Interrupts . | . . . . . . . . . . . Stealth | -11 -10 -10 -7 -5 -5 -5 -4 -3 -3 -3 --------- Run | Yrd Mat Sub Scr Fac Was Fac Fac Res Qua Frg Distress Signals 14 | . 2 . . . . 2 2 . . 8 Communications Jammed . | . . . . . . . . . . . Distress Signals . | . . . . . . . . . . . Times Spotted 189 | . 9 . . 10 6 6 12 1 4 141 Peak Tracking Total 19 | . 4 . . 5 6 2 15 1 2 19 Tactical Retreats 39 | . . . . 1 . . 4 1 . 33 Traps | -11 -10 -10 -7 -5 -5 -5 -4 -3 -3 -3 ------- Run | Yrd Mat Sub Scr Fac Was Fac Fac Res Qua Frg Traps Triggered 10 | . 1 . . 1 . 3 . . . 5 Indirectly . | . . . . . . . . . . . Trap Hack Attempts . | . . . . . . . . . . . Triggered . | . . . . . . . . . . . Disarmed . | . . . . . . . . . . . Reprogrammed . | . . . . . . . . . . . Reused . | . . . . . . . . . . . Traps Extracted . | . . . . . . . . . . . Installed . | . . . . . . . . . . . Triggered . | . . . . . . . . . . . Machines | -11 -10 -10 -7 -5 -5 -5 -4 -3 -3 -3 ---------- Run | Yrd Mat Sub Scr Fac Was Fac Fac Res Qua Frg Machines Disabled 2 | . . . . . . 1 1 . . . Max in Single Turn 1 | . . . . . . 1 1 . . . Garrison Access 2 | . . . . . . 2 . . . . Machines Repaired . | . . . . . . . . . . . Machines Dismantled . | . . . . . . . . . . . Machines Sabotaged . | . . . . . . . . . . . Overloaded Fab Kills . | . . . . . . . . . . . Hacking | -11 -10 -10 -7 -5 -5 -5 -4 -3 -3 -3 --------- Run | Yrd Mat Sub Scr Fac Was Fac Fac Res Qua Frg Machines Accessed 37 | . . . 1 8 . 14 7 3 . 4 Terminals 13 | . . . . 2 . 5 2 3 . 1 Fabricators 4 | . . . . 3 . 1 . . . . Repair Stations 1 | . . . . . . 1 . . . . Recycling Units 16 | . . . . 3 . 5 5 . . 3 Scanalyzers . | . . . . . . . . . . . Garrison Access 2 | . . . . . . 2 . . . . Total Hacks 81 | . . . 15 15 . 26 8 7 . 10 Successful 61 | . . . 15 11 . 22 6 4 . 3 Failed 20 | . . . . 4 . 4 2 3 . 7 Catastrophic 2 | . . . . . . 1 . . . 1 Database Lockouts . | . . . . . . . . . . . Manual 49 | . . . . 12 . 13 8 6 . 10 Terminals 29 | . . . . 5 . 10 3 7 . 4 Fabricators 12 | . . . . 6 . 6 . . . . Repair Stations 3 | . . . . . . 3 . . . . Recycling Units 20 | . . . . 4 . 5 5 . . 6 Scanalyzers . | . . . . . . . . . . . Garrison Access 2 | . . . . . . 2 . . . . Terminal Hacks 31 | . . . 15 2 . 7 1 4 . 2 Record 15 | . . . 15 . . . . . . . Part Schematic 1 | . . . . 1 . . . . . . Open Door 1 | . . . . . . . . 1 . . Level Access Points 2 | . . . . . . 1 1 . . . Branch Access Points 1 | . . . . . . . . 1 . . Machine Index 3 | . . . . . . 1 . 1 . 1 Fabricator Index 2 | . . . . 1 . 1 . . . . Recycling Unit Index 1 | . . . . . . . . . . 1 Recall Investigation 3 | . . . . . . 3 . . . . Recall Extermination 2 | . . . . . . 1 . 1 . . Fabricator Hacks 9 | . . . . 3 . 6 . . . . Load Schematic 6 | . . . . 3 . 3 . . . . Build 3 | . . . . . . 3 . . . . Repair Station Hacks 2 | . . . . . . 2 . . . . Scan Component 1 | . . . . . . 1 . . . . Repair 1 | . . . . . . 1 . . . . Recycling Unit Hacks . | . . . . . . . . . . . Scanalyzer . | . . . . . . . . . . . Garrison Access Hacks 2 | . . . . . . 2 . . . . Seal Access 2 | . . . . . . 2 . . . . Unauthorized Hacks 17 | . . . . 6 . 5 5 . . 1 Terminals . | . . . . . . . . . . . Fabricators 3 | . . . . 3 . . . . . . Recompile 3 | . . . . 3 . . . . . . Repair Stations . | . . . . . . . . . . . Recycling Units 14 | . . . . 3 . 5 5 . . 1 Fedlink 14 | . . . . 3 . 5 5 . . 1 Scanalyzers . | . . . . . . . . . . . Garrison Access . | . . . . . . . . . . . Data Cores Recovered 3 | . . . . 2 . . . . 1 . Used . | . . . . . . . . . . . Hacking Detections 12 | . . . . 4 . 3 1 1 . 3 Full Trace Events 3 | . . . . 1 . . . . . 2 Feedback Events 1 | . . . . . . . . . . 1 Hackware Fried 1 | . . . . . . . . . . 1 Feedback Blocked . | . . . . . . . . . . . Robot Schematics Acquired . | . . . . . . . . . . . Robots Built . | . . . . . . . . . . . Authchips . | . . . . . . . . . . . Time . | . . . . . . . . . . . Total Robot Build Rating . | . . . . . . . . . . . Part Schematics Acquired 1 | . . . . 1 . . . . . . Parts Built 3 | . . . . . . 3 . . . . Authchips 3 | . . . . . . 3 . . . . Time 72 | . . . . . . 72 . . . . Total Part Build Rating 9 | . . . . . . 9 . . . . Parts Repaired 1 | . . . . . . 1 . . . . Time 28 | . . . . . . 28 . . . . Parts Recycled . | . . . . . . . . . . . Recycled Matter . | . . . . . . . . . . . Retrieved Matter . | . . . . . . . . . . . Retrieved Components . | . . . . . . . . . . . Parts Scanalyzed . | . . . . . . . . . . . Part Schematics Acquired . | . . . . . . . . . . . Parts Damaged . | . . . . . . . . . . . Bothacking | -11 -10 -10 -7 -5 -5 -5 -4 -3 -3 -3 ------------ Run | Yrd Mat Sub Scr Fac Was Fac Fac Res Qua Frg Used RIF Installer . | . . . . . . . . . . . Robots Hacked . | . . . . . . . . . . . Non-combat . | . . . . . . . . . . . Combat . | . . . . . . . . . . . Robot Hacks Applied . | . . . . . . . . . . . Relay Couplers Released . | . . . . . . . . . . . Fabnet Peak Effective % . | . . . . . . . . . . . Robots Rewired . | . . . . . . . . . . . Allies Hacked . | . . . . . . . . . . . Hacks Repelled . | . . . . . . . . . . . Allies | -11 -10 -10 -7 -5 -5 -5 -4 -3 -3 -3 -------- Run | Yrd Mat Sub Scr Fac Was Fac Fac Res Qua Frg Total Allies . | . . . . . . . . . . . Largest Group . | . . . . . . . . . . . Highest-Rated Group . | . . . . . . . . . . . Highest-Rated Ally . | . . . . . . . . . . . Total Orders . | . . . . . . . . . . . Ally Attacks . | . . . . . . . . . . . Total Damage . | . . . . . . . . . . . Kills . | . . . . . . . . . . . Allies Corrupted . | . . . . . . . . . . . Allies Melted 3 | . . . . . . . . . . 3 Intel | -11 -10 -10 -7 -5 -5 -5 -4 -3 -3 -3 ------- Run | Yrd Mat Sub Scr Fac Was Fac Fac Res Qua Frg Active Infowar (turns) 2156 | . . . . 690 32 716 343 163 100 112 A.S.S. 2134 | . . . . 684 32 709 343 163 100 103 Structural 1624 | . . . . 386 23 507 343 163 100 102 Machine Analysis 2129 | . . . . 663 32 716 343 163 100 112 Robot Analysis Total . | . . . . . . . . . . . Derelict Logs Recovered . | . . . . . . . . . . . Drone Launches . | . . . . . . . . . . . Drone Recoveries . | . . . . . . . . . . . Exploration | -11 -10 -10 -7 -5 -5 -5 -4 -3 -3 -3 ------------- Run | Yrd Mat Sub Scr Fac Was Fac Fac Res Qua Frg Turns Passed 6732 | 21 221 240 285 696 32 716 343 163 100 3915 Spaces Moved 9527 | 35 147 150 731 1380 91 1185 648 351 266 4543 Core 168 | 35 97 . . . . . . . . 36 Treads . | . . . . . . . . . . . Legs . | . . . . . . . . . . . Wheels . | . . . . . . . . . . . Hover . | . . . . . . . . . . . Flight 9359 | . 50 150 731 1380 91 1185 648 351 266 4507 Fastest Speed 22 | 50 37 37 37 32 32 34 37 33 33 22 Average Speed 38 | 50 45 37 37 32 32 36 37 34 33 41 Slowest Speed 119 | 50 50 37 37 37 40 40 37 37 33 119 Overloaded Moves 4 | . . . . . . . . . . 4 Propulsion Burnouts . | . . . . . . . . . . . Robots Hopped 43 | . . . . 6 . 1 1 . . 35 Potential Cave-ins 9 | . . . . . . . . . . 9 Cave-ins Triggered . | . . . . . . . . . . . Exploration Rate (%) 35 | 4 37 13 59 40 76 40 19 14 39 54 Regions Visited 10 Branch Regions 4 Pre-discovered Areas 1 | . . . . 1 . . . . . . Known Exits Taken 4 | . . . . . . 1 1 1 1 . Unknown Exits Taken 4 | 1 1 1 1 . . . . . . . Scrap Searched 1 | . . . 1 . . . . . . . Spaces Dug 126 | . . . . 38 . 35 29 13 3 8 Terrain Destroyed 156 | . . . . 38 . 35 59 13 3 8 Melee 126 | . . . . 38 . 35 29 13 3 8 Projectile . | . . . . . . . . . . . AOE 30 | . . . . . . . 30 . . . Terrain Rammed . | . . . . . . . . . . . Walls Destroyed . | . . . . . . . . . . . Machines Disabled . | . . . . . . . . . . . Actions | -11 -10 -10 -7 -5 -5 -5 -4 -3 -3 -3 --------- Run | Yrd Mat Sub Scr Fac Was Fac Fac Res Qua Frg Total 12290 | 37 298 333 746 1529 93 1411 698 370 270 6505 Wait 2448 | . 148 184 10 74 1 170 15 5 . 1841 Move 9449 | 34 146 149 730 1370 90 1182 645 350 265 4488 Hop 26 | . . . . 4 . 1 1 . . 20 Pick Up 29 | 3 . . 3 5 . 2 2 . . 14 Fast Attach 51 | . 4 . . 9 . 8 . 1 . 29 Attach 16 | . . . . 3 1 4 1 . . 7 Detach 6 | . . . . . . 2 . . . 4 Swap 6 | . . . . 2 . 2 . 1 . 1 Drop 25 | . . . 3 2 1 2 . . . 17 Fire . | . . . . . . . . . . . Melee 174 | . . . . 60 . 38 34 13 5 24 Ram . | . . . . . . . . . . . Kick . | . . . . . . . . . . . Crush . | . . . . . . . . . . . Escape Stasis 8 | . . . . . . . . . . 8 Rewire . | . . . . . . . . . . . Trap . | . . . . . . . . . . . Miscellaneous 52 | . . . . . . . . . . 52 Route ------- -11/Scrapyard -10/Materials (discovered 3 exits: [*Mat] / [*Min] / [*Sub]) -10/Subcaves -7/Scraptown -5/Factory -5/Waste -5/Factory (discovered 4 exits: *Fac x4) -4/Factory (discovered 4 exits: *Res x4) -3/Research (discovered 2 exits: *Qua x2) -3/Quarantine (discovered 3 exits: [*Res] / [*Sec] / *Frg) -3/Protoforge (discovered 1 exit: [*Res]) History --------- Turn | Location | Event 15 | -11/Scrapyard | Discovered new exit (range 12) 22 | -11/Scrapyard | Entered Materials 23 | -10/Materials | Met a group of wandering Federalists 94 | -10/Materials | Discovered new exit (range 7) 178 | -10/Materials | Discovered new exit (range 14) 243 | -10/Materials | Discovered new exit (range 3) 243 | -10/Materials | Entered Subcaves 244 | -10/Subcaves | Continued accompanying wandering Federalists (1) 303 | -10/Subcaves | Build established: Mutant 474 | -10/Subcaves | Wandering Federalist uncovered a shortcut to Scraptown 483 | -10/Subcaves | Entered Scraptown 522 | -7/Scraptown | Visited UFD Registry 522 | -7/Scraptown | Registered with UFD as "Wireroller" 554 | -7/Scraptown | Visited Infowarlord's Domain 557 | -7/Scraptown | Found Active Sensor Suite 739 | -7/Scraptown | Met Optimus 739 | -7/Scraptown | Accepted into 0bPrime 766 | -7/Scraptown | Discovered new exit (range 3) 768 | -7/Scraptown | Entered Factory 768 | -5/Factory | Evolved 10 slots: Propulsion x2, Utility x8 976 | -5/Factory | Discovered new exit (range 9) 1167 | -5/Factory | Loaded intel: 8 recycling unit locations 1281 | -5/Factory | Build established: Hacker-Scout 1330 | -5/Factory | Learned location of Protoforge (-3) 1464 | -5/Factory | Manually triggered Chute Trap 1464 | -5/Factory | Sucked down chute 1464 | -5/Factory | Entered Waste 1472 | -5/Waste | Spotted C-40 Crusher 1473 | -5/Waste | Spotted C-40 Crusher 1473 | -5/Waste | Spotted C-40 Crusher 1474 | -5/Waste | Spotted C-40 Crusher 1476 | -5/Waste | Spotted C-40 Crusher 1478 | -5/Waste | Spotted C-40 Crusher 1479 | -5/Waste | EMP discharged 1487 | -5/Waste | Crushed by Compactor (1 part destroyed, 1 dropped) 1491 | -5/Waste | Discovered new exit (range 16) 1496 | -5/Waste | Identified exit to Factory 1496 | -5/Waste | Entered Factory 1639 | -5/Factory | Fabricated Hacking Suite (x1) 1665 | -5/Factory | Fabricated Hacking Suite (x1) 1692 | -5/Factory | Fabricated Hacking Suite (x1) 1749 | -5/Factory | Repaired Nuclear Pulse Array 1765 | -5/Factory | Loaded intel: 8 recycling unit locations 1771 | -5/Factory | Allied Derelicts emerged from ambush trap array 2184 | -5/Factory | Identified exit to Factory 2212 | -5/Factory | Entered another Factory area 2212 | -4/Factory | Evolved 2 slots: Utility x2 2227 | -4/Factory | Loaded intel: 8 recycling unit locations 2286 | -4/Factory | Discovered new exit (range 10) 2366 | -4/Factory | Build established: Wizard-Scout 2485 | -4/Factory | Identified exit to Research 2555 | -4/Factory | Entered Research 2555 | -3/Research | Evolved 2 slots: Propulsion x2 2608 | -3/Research | Identified exit to Quarantine 2718 | -3/Research | Entered Quarantine 2765 | -3/Quarantine | Discovered new exit (range 13) 2794 | -3/Quarantine | Spotted Fortress 2816 | -3/Quarantine | Discovered new exit (range 6) 2816 | -3/Quarantine | Discovered new exit (range 7) 2818 | -3/Quarantine | Identified exit to Protoforge 2818 | -3/Quarantine | Entered Protoforge 2891 | -3/Protoforge | Spotted AP7-3 2891 | -3/Protoforge | Spotted AP7-3 2891 | -3/Protoforge | Superfortress began startup sequence 2894 | -3/Protoforge | Spotted EXE-6 2894 | -3/Protoforge | Spotted EXE-6 2898 | -3/Protoforge | Spotted Decapitator 2899 | -3/Protoforge | Spotted Decapitator 2933 | -3/Protoforge | UFD initiated attack on Protoforge 2933 | -3/Protoforge | Loaded intel: 3 recycling unit locations 2937 | -3/Protoforge | Adv. Hacking Suite fried by hacking feedback 2941 | -3/Protoforge | Destroyed Decapitator 2947 | -3/Protoforge | Core integrity fell below 50% 2965 | -3/Protoforge | Destroyed Decapitator 2968 | -3/Protoforge | Lost 6 parts (1p3n2u) 2973 | -3/Protoforge | System corruption reached 10% 2978 | -3/Protoforge | Optimus greeted in Protoforge 2979 | -3/Protoforge | Spotted Overlord 3017 | -3/Protoforge | Lost 10 allies 3069 | -3/Protoforge | Met 7R-MNS 3217 | -3/Protoforge | Build established: Sprinter 3231 | -3/Protoforge | Spotted Striker 3231 | -3/Protoforge | Spotted Executioner 3232 | -3/Protoforge | Spotted Striker 3272 | -3/Protoforge | Lost 3 allies 3279 | -3/Protoforge | Spotted Executioner 3343 | -3/Protoforge | UFD reported confirmed Drillbomb installation 3365 | -3/Protoforge | Spotted Striker 3557 | -3/Protoforge | Build established: Scavenger-Sprinter 3787 | -3/Protoforge | UFD reported confirmed Drillbomb installation 3918 | -3/Protoforge | Installed UFD Drillbomb at designated target 3918 | -3/Protoforge | UFD reported confirmed Drillbomb installation 3923 | -3/Protoforge | Spotted Executioner 3941 | -3/Protoforge | Spotted Striker 3975 | -3/Protoforge | Lost 4 allies 4087 | -3/Protoforge | Spotted Striker 4155 | -3/Protoforge | Spotted Striker 4210 | -3/Protoforge | Spotted Striker 4219 | -3/Protoforge | Spotted Executioner 4250 | -3/Protoforge | Lost 4 allies 4335 | -3/Protoforge | Spotted Striker 4336 | -3/Protoforge | Spotted Executioner 4373 | -3/Protoforge | Lost 6 allies 4444 | -3/Protoforge | Lost 3 allies 4889 | -3/Protoforge | Spotted Executioner 4969 | -3/Protoforge | Discovered new exit (range 10) 4986 | -3/Protoforge | Spotted Hotshot 4988 | -3/Protoforge | Spotted Hotshot 5020 | -3/Protoforge | UFD reported confirmed Drillbomb installation 5022 | -3/Protoforge | Spotted Striker 5027 | -3/Protoforge | Spotted Striker 5028 | -3/Protoforge | Spotted Executioner 5051 | -3/Protoforge | Spotted Executioner 5061 | -3/Protoforge | P-80 Master assimilated allied Lugger 024 5066 | -3/Protoforge | Found UFD Drillbomb 5077 | -3/Protoforge | Found UFD Drillbomb 5158 | -3/Protoforge | Lost 16 allies 5239 | -3/Protoforge | Core integrity fell below 20% 5249 | -3/Protoforge | Spotted Striker 5288 | -3/Protoforge | Found UFD Drillbomb 5307 | -3/Protoforge | Build established: Scavenger-Mutant 5332 | -3/Protoforge | Spotted Striker 5358 | -3/Protoforge | Spotted Executioner 5369 | -3/Protoforge | Lost 7 allies 5414 | -3/Protoforge | Installed UFD Drillbomb at designated target 5414 | -3/Protoforge | UFD reported confirmed Drillbomb installation 5417 | -3/Protoforge | Found UFD Drillbomb 5470 | -3/Protoforge | Installed UFD Drillbomb at designated target 5470 | -3/Protoforge | UFD reported confirmed Drillbomb installation 5563 | -3/Protoforge | Spotted Executioner 5563 | -3/Protoforge | Spotted Striker 5875 | -3/Protoforge | UFD reported confirmed Drillbomb installation 5914 | -3/Protoforge | Spotted Executioner 5922 | -3/Protoforge | Spotted Striker 6023 | -3/Protoforge | Lost 5 allies 6059 | -3/Protoforge | Spotted Executioner 6061 | -3/Protoforge | Spotted Striker 6063 | -3/Protoforge | Spotted Striker 6158 | -3/Protoforge | Lost 5 allies 6212 | -3/Protoforge | Spotted Executioner 6212 | -3/Protoforge | Spotted Executioner 6219 | -3/Protoforge | Spotted Striker 6340 | -3/Protoforge | Spotted Executioner 6371 | -3/Protoforge | Lost 9 allies 6400 | -3/Protoforge | Installed UFD Drillbomb at designated target 6400 | -3/Protoforge | UFD reported confirmed Drillbomb installation 6485 | -3/Protoforge | Installed UFD Drillbomb at designated target 6485 | -3/Protoforge | UFD reported confirmed Drillbomb installation 6487 | -3/Protoforge | Spotted Executioner 6504 | -3/Protoforge | Spotted Executioner 6504 | -3/Protoforge | Spotted Executioner 6613 | -3/Protoforge | Lost 3 allies 6617 | -3/Protoforge | Spotted Striker 6621 | -3/Protoforge | Spotted Striker 6630 | -3/Protoforge | Spotted Striker 6662 | -3/Protoforge | Lost 3 allies 6662 | -3/Protoforge | Spotted Executioner 6691 | -3/Protoforge | Spotted Executioner 6702 | -3/Protoforge | Spotted Striker 6728 | -3/Protoforge | Found UFD Drillbomb 6733 | -3/Protoforge | Spotted Executioner 6733 | -3/Protoforge | Destroyed by Executioner with Helical Railgun Last Messages --------------- N-04 Retriever collects Ovr. Coil Gun. Slug penetrates Striker. Slug penetrates R0-IQO(E). Slug penetrates Wall. Slug penetrates Striker. System corrupted: Matter fused (-9). Acquired 9 matter. System corrupted: Energy discharge (-42). System corrupted: Energy discharge (-41). Slug penetrates Build Unifier. Slug penetrates Wall. Penetrated by Slug. Slug penetrates Wall. System corrupted: Heat flow error (+132). Acquired Lgt. Humpback. Acquired 10 matter. Acquired UFD Drillbomb. Xenon Bombardment Thruster destroyed. Knocked back. Dropped Mak. Medium Armor Plating. Map ----- +----------------------------------------------------+ | ########### ###?????##?????? | | ########### """" """ ###?????##?????? | | ##????????# """" """" %###?????##?????? | | ##????????# """" """" ###?????##?????? | | ##????????# """" """"% #####?####?????? | | ##????????# & #??????##?????? | | ##????????+ """" """" %#??????##?????? | | ##????????# """" """" #??????##?????? | | ##????????#### """" """" +??????##?????# | | ##????????#### """" """" #??????##?????# | | ##????????#### #??????######## | | ############## """" """" ############### | | #######??????# """" """" | | ?????##??????# """" """" ^ | | ?????##??????+ "" """" | | ?????##??????# " " | | ?????##??????# "%"%"############## | | ?????##??????#### #######+#"#"##### | | ?????############ ### %&%* %##??## """" | | ?????############ ### """*!!=##??## """" | | ???????????????## ### """ %=!##??## """" | | ???????????????## ### """%=%%##??## """" | | ???????????????## ### *%=!=!###### """" | | ???????????????## ### "!"! !=###!#=[!%|"" | | ???????????????## %#; |*[%==%!!%!/* | | ???????????????## @%%# """ =*#""#=!%!##+## | | ????????????##### # =# !!###[ | | ????????????###"# < ###+#"##### #####^ | | ????????????##% ### #######?#??## | | ????????????## ### ##?????????## """ | | ????????????## [ [[ ### ########???## """ | | ????????????####*% ###"########???## """ | | ????????????#####[%= # ##???## | | ????????#########!! ; ##???## """ | | ????????########;%* # ##???## """ | | ????????## + ##???## "" | | ########## !! E; " ##???## | | ########## !%! ; " "" " ##???#" """ | | # # !!=! C # "R"" " ##?###" " | | # """ # "%""# # """ #### " " | | # """ # "### E#"#"####### " | | # """ # ### *##""###*""""""###! "" | | # + ### [%[%" !%!% !!!*==[% | | # # ### ==!" ! % !%!/=%=["! | | # "" " ### % !=/%=*=%%%! | | # ""T""" # ### % % =%=%%&=%[!= | | # """"" # ##########/###"#%%%*![##+%=*" | | ########## ####### !=%=[= " !![!!= | | ########## ##???## """" !!*% =# [=%%!! | | ????????## ##???## """" =%[*[[*# =*=% | +----------------------------------------------------+ Best States ------------- Heat Dissipation 46 Energy Generation 21 Energy Capacity 325 Matter Stores 300 Matter Capacity 300 Sight Range 16 Robot Scan Range 20 Terrain Scan Density 10 Additional Mass Support 9 Armor Coverage 150 Resistance: KI 20 Resistance: TH 20 Resistance: EX 20 Resistance: EM 20 Resistance: I 20 Resistance: S 20 Resistance: P 20 Evasion (%) 65 Targeting Accuracy 6 Offensive Hacking 64 Defensive Hacking 20 Authchip Count 3 Item Schematics ----------------- Hacking Suite | -5/Factory | Hacked Robot Schematics ------------------ None Fabricated ------------ Hacking Suite | x1 | -5/Factory | Authchip Hacking Suite | x1 | -5/Factory | Authchip Hacking Suite | x1 | -5/Factory | Authchip Repaired ---------- Nuclear Pulse Array | 58% | -5/Factory Alien Tech Used ----------------- None Achievements -------------- None Challenges ------------ None Game ------ Seed GuidanceWeaponFirepult Manual? 0 Play Time 01:40:37 Cumulative 143.9 hours Start 2025.05.16 @ 22:59:39 End 2025.05.17 @ 00:43:29 Sessions 1 Manual Loads 0 Difficulty Adventurer Special Mode None Game No. 162 Rogue 18 Adventurer 133 Explorer 11 Win Type - Total 32 Types 10/0/11/0/6/0/4/1/0/0 Lore% 45 Gallery% 44 Achievement% 64 Wizard Run 0 Options --------- Layout 0 ASCII 0 Keyboard 0 Movement Numpad Keybinds 0 Fullscreen 2 Font 12/Smallcaps Map View 83x54 Zoom Use 0% Tactical HUD 0 Map Filters NONE Filters NONE Steam 1 RUN: 171230aa-8ba6-42e0-ac28-375d20bc422e